[Event "***Titled Tuesday 3|2 Blitz"]
[Site "Chess.com"]
[Date "2017.02.07"]
[Round "3"]
[White "ArnaudovP"]
[Black "plouarzel"]
[Result "1/2-1/2"]
[WhiteElo "2392"]
[BlackElo "2413"]
[TimeControl "180+2"]
[EndTime "13:45:45 PST"]
[Termination "Game drawn by agreement"]

1. Nf3 {[%clk 0:03:02]} 1... Nf6 {[%clk 0:02:53.9]} 2. c4 {[%clk 0:03:01]} 2...
c5 {[%clk 0:02:51.5]} 3. Nc3 {[%clk 0:03:01.5]} 3... Nc6 {[%clk 0:02:50.8]} 4.
d4 {[%clk 0:03:01.8]} 4... cxd4 {[%clk 0:02:52.7]} 5. Nxd4 {[%clk 0:03:02.9]}
5... g6 {[%clk 0:02:53.3]} 6. e4 {[%clk 0:03:03.3]} 6... Nxd4 {[%clk 0:02:54.2]}
7. Qxd4 {[%clk 0:03:02.7]} 7... d6 {[%clk 0:02:53.8]} 8. Be2 {[%clk 0:03:03]}
8... Bg7 {[%clk 0:02:54.1]} 9. Be3 {[%clk 0:03:04]} 9... O-O {[%clk 0:02:54.2]}
10. Qd2 {[%clk 0:03:05.4]} 10... a5 {[%clk 0:02:55.4]} 11. O-O {[%clk
0:03:05.3]} 11... a4 {[%clk 0:02:54.3]} 12. Rac1 {[%clk 0:03:05.3]} 12... Qa5
{[%clk 0:02:51.5]} 13. f3 {[%clk 0:03:04.5]} 13... Be6 {[%clk 0:02:52]} 14. Nd5
{[%clk 0:02:45.5]} 14... Qxd2 {[%clk 0:02:20.2]} 15. Nxe7+ {[%clk 0:02:44.7]}
15... Kh8 {[%clk 0:02:21.7]} 16. Bxd2 {[%clk 0:02:45.6]} 16... Rfe8 {[%clk
0:02:23.2]} 17. Nd5 {[%clk 0:02:33]} 17... Bxd5 {[%clk 0:02:09.2]} 18. cxd5
{[%clk 0:02:33]} 18... Nxd5 {[%clk 0:02:10.5]} 19. Bb5 {[%clk 0:02:33.6]} 19...
Re5 {[%clk 0:02:09.7]} 20. exd5 {[%clk 0:02:14.2]} 20... Rxd5 {[%clk 0:02:11.6]}
21. Bxa4 {[%clk 0:02:14.8]} 21... Rxd2 {[%clk 0:02:08.3]} 22. Bb3 {[%clk
0:02:15.2]} 22... Bxb2 {[%clk 0:02:01.7]} 23. Rc7 {[%clk 0:02:14.9]} 23... Re8
{[%clk 0:01:45.7]} 24. Rc2 {[%clk 0:02:12.4]} 24... Bd4+ {[%clk 0:01:38.8]} 25.
Kh1 {[%clk 0:02:13.1]} 25... Rxc2 {[%clk 0:01:37.7]} 26. Bxc2 {[%clk 0:02:13.8]}
26... Re2 {[%clk 0:01:38.7]} 27. Bb3 {[%clk 0:02:13.5]} 27... Kg7 {[%clk
0:01:37.6]} 28. Rd1 {[%clk 0:02:12]} 28... Bc5 {[%clk 0:01:36.8]} 29. h3 {[%clk
0:02:11.3]} 29... b5 {[%clk 0:01:34]} 30. Kh2 {[%clk 0:02:10.4]} 30... h5 {[%clk
0:01:32.7]} 31. h4 {[%clk 0:02:10.3]} 31... f6 {[%clk 0:01:08]} 32. Kg3 {[%clk
0:02:04.6]} 32... g5 {[%clk 0:01:05.9]} 33. hxg5 {[%clk 0:02:04.5]} 33... fxg5
{[%clk 0:01:07.1]} 34. Rd5 {[%clk 0:02:03.3]} 34... Kf6 {[%clk 0:01:00.1]} 35.
Kh3 {[%clk 0:02:04.3]} 35... Re1 {[%clk 0:00:53.6]} 36. Rd1 {[%clk 0:02:03.1]}
36... Re2 {[%clk 0:00:48.8]} 37. Rd5 {[%clk 0:02:01.9]} 37... b4 {[%clk
0:00:36]} 38. Rd1 {[%clk 0:02:01.3]} 38... Re3 {[%clk 0:00:24.2]} 39. Kh2 {[%clk
0:02:00.6]} 39... Re2 {[%clk 0:00:18.5]} 40. Rd5 {[%clk 0:01:59.8]} 40... Re1
{[%clk 0:00:18.2]} 41. Rd3 {[%clk 0:01:59.5]} 41... h4 {[%clk 0:00:16.9]} 42.
Kh3 {[%clk 0:01:52.9]} 42... Rh1+ {[%clk 0:00:17.6]} 43. Kg4 {[%clk 0:01:52.9]}
43... Rg1 {[%clk 0:00:19.5]} 44. Rd2 {[%clk 0:01:52.6]} 44... Re1 {[%clk
0:00:15.1]} 45. Kh3 {[%clk 0:01:44.4]} 45... Re5 {[%clk 0:00:13.9]} 46. Kh2
{[%clk 0:01:44.6]} 46... Re1 {[%clk 0:00:12.3]} 47. Rd5 {[%clk 0:01:39.9]} 47...
Rc1 {[%clk 0:00:09.6]} 48. Rd1 {[%clk 0:01:36.7]} 48... Rxd1 {[%clk 0:00:09.8]}
49. Bxd1 {[%clk 0:01:36.9]} 49... Ke5 {[%clk 0:00:11.3]} 50. g3 {[%clk
0:01:37.5]} 50... hxg3+ {[%clk 0:00:10.8]} 51. Kxg3 {[%clk 0:01:38.4]} 51... d5
{[%clk 0:00:11.3]} 52. Kg2 {[%clk 0:01:36.6]} 52... Kf4 {[%clk 0:00:12.4]} 53.
Kf1 {[%clk 0:01:35.5]} 53... Ke3 {[%clk 0:00:10.5]} 54. Bb3 {[%clk 0:01:33.5]}
54... d4 {[%clk 0:00:11.7]} 55. Bd5 {[%clk 0:01:33.6]} 55... d3 {[%clk
0:00:11.7]} 56. Ke1 {[%clk 0:01:34.6]} 56... Bd4 {[%clk 0:00:12.6]} 57. Kd1
{[%clk 0:01:35]} 57... Bc3 {[%clk 0:00:12.4]} 58. Bc6 {[%clk 0:01:35.8]} 58...
Kd4 {[%clk 0:00:12.2]} 59. Bb7 {[%clk 0:01:36.6]} 59... Ke3 {[%clk 0:00:09.3]}
60. Bc6 {[%clk 0:01:37.1]} 60... Kf4 {[%clk 0:00:09.6]} 61. Bb7 {[%clk
0:01:37.8]} 61... Ke5 {[%clk 0:00:10.7]} 62. Ba8 {[%clk 0:01:37.6]} 62... Kd4
{[%clk 0:00:10.4]} 63. Bb7 {[%clk 0:01:38.3]} 63... Kc4 {[%clk 0:00:10.1]} 64.
Ba6+ {[%clk 0:01:39.1]} 64... Kd4 {[%clk 0:00:09.8]} 65. Bb7 {[%clk 0:01:40]}
65... Bb2 {[%clk 0:00:11]} 66. Ba8 {[%clk 0:01:40.3]} 66... Kc3 {[%clk
0:00:11.8]} 67. Bb7 {[%clk 0:01:41.3]} 67... Ba3 {[%clk 0:00:10.5]} 68. Bc6
{[%clk 0:01:42.3]} 68... Bb2 {[%clk 0:00:07.7]} 69. Bb7 {[%clk 0:01:42.9]} 69...
Kc4 {[%clk 0:00:07]} 70. Ba6+ {[%clk 0:01:43.4]} 70... Kd4 {[%clk 0:00:08.2]}
71. Bb7 {[%clk 0:01:44.4]} 71... Ba1 {[%clk 0:00:05.8]} 72. Ba8 {[%clk
0:01:44.8]} 72... Bb2 {[%clk 0:00:05.9]} 73. Bb7 {[%clk 0:01:45.3]} 73... Kc3
{[%clk 0:00:06.8]} 74. Ba8 {[%clk 0:01:45.7]} 74... d2 {[%clk 0:00:07.9]} 75.
Bb7 {[%clk 0:01:46]} 75... Bc1 {[%clk 0:00:07.6]} 76. Ba8 {[%clk 0:01:46.6]}
76... Kb2 {[%clk 0:00:08.6]} 77. Bd5 {[%clk 0:01:47.8]} 77... Ka3 {[%clk
0:00:09.6]} 78. Be6 {[%clk 0:01:48.4]} 78... Ka4 {[%clk 0:00:10.4]} 79. Bb3+
{[%clk 0:01:48.9]} 79... Kb5 {[%clk 0:00:11.5]} 80. Bd5 {[%clk 0:01:49.8]} 80...
Kc5 {[%clk 0:00:12.7]} 81. Ba8 {[%clk 0:01:50.6]} 81... Kd4 {[%clk 0:00:13.9]}
82. Bb7 {[%clk 0:01:51.3]} 82... Ke3 {[%clk 0:00:14.8]} 83. Bc6 {[%clk
0:01:52.2]} 83... Kf4 {[%clk 0:00:16]} 84. Bb7 {[%clk 0:01:52.7]} 84... Kg3
{[%clk 0:00:15.6]} 85. Bc6 {[%clk 0:01:53.4]} 85... g4 {[%clk 0:00:16.5]} 86.
fxg4 {[%clk 0:01:53.3]} 86... Kxg4 {[%clk 0:00:18.4]} 87. Bd5 {[%clk 0:01:53.7]}
87... Kf4 {[%clk 0:00:19.5]} 88. Bb3 {[%clk 0:01:54.4]} 88... Ke3 {[%clk
0:00:20.8]} 89. Bg8 {[%clk 0:01:55.2]} 89... Kd3 {[%clk 0:00:21.9]} 90. Bf7
{[%clk 0:01:55.3]} 90... Kc3 {[%clk 0:00:23.8]} 91. Be6 {[%clk 0:01:56.2]} 91...
Kd3 {[%clk 0:00:24.8]} 92. Bf7 {[%clk 0:01:57.4]} 92... Bb2 {[%clk 0:00:26.2]}
93. Be6 {[%clk 0:01:58.5]} 93... Bf6 {[%clk 0:00:27.4]} 94. Bf7 {[%clk
0:01:59.6]} 94... Kc3 {[%clk 0:00:28.7]} 95. Be6 {[%clk 0:02:00.7]} 95... Bg5
{[%clk 0:00:30.6]} 96. Bf7 {[%clk 0:02:01.6]} 96... Bh6 {[%clk 0:00:32.5]} 97.
Be6 {[%clk 0:02:02.6]} 97... Kb2 {[%clk 0:00:34]} 98. Bf7 {[%clk 0:02:03.2]}
98... Bg5 {[%clk 0:00:34.6]} 99. Be6 {[%clk 0:02:04.1]} 99... Bf4 {[%clk
0:00:36.5]} 100. Bf7 {[%clk 0:02:04.6]} 100... Ka3 {[%clk 0:00:35.1]} 101. Be6
{[%clk 0:02:05.3]} 101... Bh6 {[%clk 0:00:37]} 102. Bb3 {[%clk 0:02:05.8]}
102... Bg5 {[%clk 0:00:37.1]} 103. Bf7 {[%clk 0:02:06.4]} 103... Ka4 {[%clk
0:00:37.9]} 104. Bb3+ {[%clk 0:02:06.9]} 104... Ka5 {[%clk 0:00:38.9]} 105. Bf7
{[%clk 0:02:07.9]} 105... Be3 {[%clk 0:00:40.3]} 106. Bb3 {[%clk 0:02:08.6]}
106... Kb5 {[%clk 0:00:41.4]} 107. Bf7 {[%clk 0:02:08.6]} 107... Ka4 {[%clk
0:00:43.3]} 108. Bb3+ {[%clk 0:02:07.6]} 108... Ka3 {[%clk 0:00:45.2]} 109. Be6
{[%clk 0:02:08.1]} 109... b3 {[%clk 0:00:47.1]} 110. Bxb3 {[%clk 0:02:08.7]}
110... Bh6 {[%clk 0:00:47.8]} 111. Ke2 {[%clk 0:02:09.5]} 111... d1=Q+ {[%clk
0:00:47.6]} 112. Kxd1 {[%clk 0:02:09.9]} 112... Bg7 {[%clk 0:00:49.5]} 113. Kc2
{[%clk 0:02:10.5]} 113... Bf8 {[%clk 0:00:51.4]} 1/2-1/2

[Event "***Titled Tuesday 3|2 Blitz"]
[Site "Chess.com"]
[Date "2017.02.07"]
[Round "3"]
[White "MyleneFarmer"]
[Black "jcgs1030"]
[Result "1/2-1/2"]
[WhiteElo "2349"]
[BlackElo "2295"]
[TimeControl "180+2"]
[EndTime "13:47:09 PST"]
[Termination "Game drawn - timeout vs insufficient material"]

1. e4 {[%clk 0:03:02]} 1... c5 {[%clk 0:02:57.7]} 2. Nf3 {[%clk 0:03:02.8]} 2...
d6 {[%clk 0:02:55.5]} 3. Bb5+ {[%clk 0:03:00.7]} 3... Nd7 {[%clk 0:02:52.2]} 4.
d4 {[%clk 0:03:01.7]} 4... cxd4 {[%clk 0:02:54.1]} 5. Qxd4 {[%clk 0:03:03]} 5...
e5 {[%clk 0:02:53.1]} 6. Qd3 {[%clk 0:03:03.3]} 6... h6 {[%clk 0:02:53.7]} 7.
Nc3 {[%clk 0:03:04.4]} 7... Nf6 {[%clk 0:02:53.8]} 8. O-O {[%clk 0:03:05.2]}
8... Be7 {[%clk 0:02:53.7]} 9. Nd2 {[%clk 0:03:02.7]} 9... a6 {[%clk 0:02:37.8]}
10. Bxd7+ {[%clk 0:03:02.7]} 10... Bxd7 {[%clk 0:02:39.7]} 11. Nc4 {[%clk
0:03:03.6]} 11... Bc6 {[%clk 0:02:39.9]} 12. Ne3 {[%clk 0:02:59]} 12... O-O
{[%clk 0:02:31.7]} 13. Rd1 {[%clk 0:02:56.1]} 13... Rc8 {[%clk 0:02:31.4]} 14.
a4 {[%clk 0:02:46.8]} 14... Re8 {[%clk 0:02:18.6]} 15. Nf5 {[%clk 0:02:46.1]}
15... Bf8 {[%clk 0:02:18.3]} 16. Nxd6 {[%clk 0:02:32.6]} 16... Bxd6 {[%clk
0:02:17.5]} 17. Qxd6 {[%clk 0:02:33.9]} 17... Qxd6 {[%clk 0:02:18.7]} 18. Rxd6
{[%clk 0:02:35.2]} 18... Nxe4 {[%clk 0:02:20.6]} 19. Rxc6 {[%clk 0:02:35.2]}
19... Rxc6 {[%clk 0:02:17.9]} 20. Nxe4 {[%clk 0:02:36.4]} 20... Rxc2 {[%clk
0:02:19.8]} 21. Nc3 {[%clk 0:02:09.1]} 21... f5 {[%clk 0:01:46.1]} 22. Kf1
{[%clk 0:02:08.5]} 22... Rd8 {[%clk 0:01:43]} 23. Ke1 {[%clk 0:01:54.8]} 23...
Kf7 {[%clk 0:01:42.4]} 24. Nd1 {[%clk 0:01:46]} 24... f4 {[%clk 0:01:38]} 25.
Nc3 {[%clk 0:01:44.2]} 25... Ke6 {[%clk 0:01:36.2]} 26. a5 {[%clk 0:01:37.2]}
26... Kf5 {[%clk 0:01:34.4]} 27. h3 {[%clk 0:01:35.3]} 27... g5 {[%clk
0:01:31.8]} 28. g4+ {[%clk 0:01:34.6]} 28... fxg3 {[%clk 0:01:31.7]} 29. fxg3
{[%clk 0:01:36]} 29... g4 {[%clk 0:01:17.6]} 30. hxg4+ {[%clk 0:01:33.6]} 30...
Kxg4 {[%clk 0:01:18.1]} 31. Ra4+ {[%clk 0:01:30.3]} 31... Kf3 {[%clk 0:01:10]}
32. Bxh6 {[%clk 0:01:24.4]} 32... Rh8 {[%clk 0:01:09.3]} 33. Rh4 {[%clk
0:01:21.3]} 33... Kxg3 {[%clk 0:01:00.5]} 34. Rh5 {[%clk 0:01:10.1]} 34... Kf3
{[%clk 0:00:40.3]} 35. Rh3+ {[%clk 0:01:07.4]} 35... Kg4 {[%clk 0:00:35.6]} 36.
Rh1 {[%clk 0:01:08.3]} 36... Rxb2 {[%clk 0:00:27.6]} 37. Rg1+ {[%clk 0:01:03.3]}
37... Kf3 {[%clk 0:00:25.6]} 38. Bc1 {[%clk 0:01:01.2]} 38... Rc2 {[%clk
0:00:23.6]} 39. Rf1+ {[%clk 0:01:01.1]} 39... Kg4 {[%clk 0:00:23.8]} 40. Rg1+
{[%clk 0:01:00.3]} 40... Kf5 {[%clk 0:00:24.4]} 41. Bd2 {[%clk 0:00:55.6]} 41...
Rh2 {[%clk 0:00:23.5]} 42. Ne2 {[%clk 0:00:56.6]} 42... Ra2 {[%clk 0:00:21.4]}
43. Rg7 {[%clk 0:00:45.8]} 43... Rh1+ {[%clk 0:00:17.1]} 44. Ng1 {[%clk
0:00:38.6]} 44... e4 {[%clk 0:00:17.8]} 45. Rf7+ {[%clk 0:00:32.1]} 45... Ke6
{[%clk 0:00:18.3]} 46. Rf1 {[%clk 0:00:32.9]} 46... Ra1+ {[%clk 0:00:18.3]} 47.
Ke2 {[%clk 0:00:34.1]} 47... Rxf1 {[%clk 0:00:20.2]} 48. Kxf1 {[%clk 0:00:35.5]}
48... Rh2 {[%clk 0:00:21.5]} 49. Ne2 {[%clk 0:00:35.1]} 49... Rh1+ {[%clk
0:00:22.7]} 50. Kf2 {[%clk 0:00:36]} 50... Rh3 {[%clk 0:00:23.6]} 51. Nf4+
{[%clk 0:00:36]} 51... Ke5 {[%clk 0:00:23.6]} 52. Nxh3 {[%clk 0:00:37.1]} 52...
Kd5 {[%clk 0:00:25.5]} 53. Ke3 {[%clk 0:00:37.6]} 53... Kc5 {[%clk 0:00:26.3]}
54. Kxe4 {[%clk 0:00:35.2]} 54... Kb5 {[%clk 0:00:27.3]} 55. Nf4 {[%clk
0:00:32.5]} 55... b6 {[%clk 0:00:28.5]} 56. axb6 {[%clk 0:00:32.9]} 56... Kxb6
{[%clk 0:00:30.4]} 57. Kd4 {[%clk 0:00:34.4]} 57... Kb5 {[%clk 0:00:30.7]} 58.
Kc3 {[%clk 0:00:35.5]} 58... Kc5 {[%clk 0:00:30.4]} 59. Nd3+ {[%clk 0:00:35.1]}
59... Kd5 {[%clk 0:00:30.5]} 60. Kb4 {[%clk 0:00:36.3]} 60... Kd4 {[%clk
0:00:31.1]} 61. Nb2 {[%clk 0:00:37.5]} 61... Ke4 {[%clk 0:00:31.6]} 62. Bc3
{[%clk 0:00:38.8]} 62... Kd5 {[%clk 0:00:32.3]} 63. Ka5 {[%clk 0:00:39.8]} 63...
Kc5 {[%clk 0:00:32.9]} 64. Kxa6 {[%clk 0:00:40.4]} 64... Kc6 {[%clk 0:00:34.2]}
65. Ka5 {[%clk 0:00:41.3]} 65... Kc5 {[%clk 0:00:35.4]} 66. Ka4 {[%clk
0:00:42.7]} 66... Kc6 {[%clk 0:00:35.8]} 67. Kb4 {[%clk 0:00:44.1]} 67... Kd5
{[%clk 0:00:35.9]} 68. Kb5 {[%clk 0:00:45.4]} 68... Kd6 {[%clk 0:00:35.8]} 69.
Nd3 {[%clk 0:00:44.4]} 69... Kd5 {[%clk 0:00:35.9]} 70. Bb2 {[%clk 0:00:45.2]}
70... Ke4 {[%clk 0:00:35.2]} 71. Kc4 {[%clk 0:00:46.5]} 71... Ke3 {[%clk
0:00:35.6]} 72. Bc3 {[%clk 0:00:44.1]} 72... Ke4 {[%clk 0:00:36.5]} 73. Bd4
{[%clk 0:00:44.9]} 73... Kf3 {[%clk 0:00:36.9]} 74. Kd5 {[%clk 0:00:45.1]} 74...
Ke2 {[%clk 0:00:36]} 75. Ke4 {[%clk 0:00:44.8]} 75... Kf1 {[%clk 0:00:37.1]} 76.
Nf4 {[%clk 0:00:41]} 76... Ke1 {[%clk 0:00:37.2]} 77. Be3 {[%clk 0:00:40]} 77...
Kf1 {[%clk 0:00:38.2]} 78. Kd3 {[%clk 0:00:39.2]} 78... Ke1 {[%clk 0:00:37.9]}
79. Ke4 {[%clk 0:00:29.1]} 79... Kf1 {[%clk 0:00:38.3]} 80. Kf3 {[%clk
0:00:30.1]} 80... Ke1 {[%clk 0:00:39.1]} 81. Ng2+ {[%clk 0:00:19.6]} 81... Kf1
{[%clk 0:00:39.3]} 82. Bg5 {[%clk 0:00:16.6]} 82... Kg1 {[%clk 0:00:39.5]} 83.
Kg3 {[%clk 0:00:15.1]} 83... Kh1 {[%clk 0:00:38.1]} 84. Nh4 {[%clk 0:00:16.8]}
84... Kg1 {[%clk 0:00:39]} 85. Nf3+ {[%clk 0:00:14.3]} 85... Kh1 {[%clk
0:00:40.1]} 86. Nd2 {[%clk 0:00:15.5]} 86... Kg1 {[%clk 0:00:41]} 87. Kf3 {[%clk
0:00:16.2]} 87... Kh1 {[%clk 0:00:41.6]} 88. Kf2 {[%clk 0:00:17.3]} 88... Kh2
{[%clk 0:00:42]} 89. Be3 {[%clk 0:00:18.1]} 89... Kh1 {[%clk 0:00:42.7]} 90. Kf3
{[%clk 0:00:11.4]} 90... Kh2 {[%clk 0:00:42.9]} 91. Nf1+ {[%clk 0:00:12.7]}
91... Kh1 {[%clk 0:00:43.8]} 92. Nd2 {[%clk 0:00:12]} 92... Kh2 {[%clk
0:00:44.6]} 93. Ne4 {[%clk 0:00:11.5]} 93... Kh1 {[%clk 0:00:45.3]} 94. Ng3+
{[%clk 0:00:08.7]} 94... Kh2 {[%clk 0:00:46.1]} 95. Bd4 {[%clk 0:00:01.9]} 95...
Kh3 {[%clk 0:00:47]} 1/2-1/2

[Event "***Titled Tuesday 3|2 Blitz"]
[Site "Chess.com"]
[Date "2017.02.07"]
[Round "3"]
[White "Hamisandwich"]
[Black "ABDELAZEEZ-M"]
[Result "0-1"]
[WhiteElo "2415"]
[BlackElo "2147"]
[TimeControl "180+2"]
[EndTime "13:50:03 PST"]
[Termination "ABDELAZEEZ-M won by resignation"]

1. a3 {[%clk 0:03:02]} 1... d5 {[%clk 0:02:58.5]} 2. Nf3 {[%clk 0:03:02.1]} 2...
c6 {[%clk 0:02:57.1]} 3. e3 {[%clk 0:03:02.2]} 3... Bf5 {[%clk 0:02:57.3]} 4. b4
{[%clk 0:03:01]} 4... e6 {[%clk 0:02:57.9]} 5. Bb2 {[%clk 0:03:02]} 5... h6
{[%clk 0:02:58]} 6. h3 {[%clk 0:03:02.7]} 6... Nf6 {[%clk 0:02:58.5]} 7. d3
{[%clk 0:03:01.1]} 7... Nbd7 {[%clk 0:02:57.4]} 8. Nbd2 {[%clk 0:02:57.8]} 8...
a5 {[%clk 0:02:57.1]} 9. b5 {[%clk 0:02:56.7]} 9... cxb5 {[%clk 0:02:52.9]} 10.
Nd4 {[%clk 0:02:58]} 10... b4 {[%clk 0:02:47.7]} 11. Nxf5 {[%clk 0:02:58]} 11...
exf5 {[%clk 0:02:48.5]} 12. Be2 {[%clk 0:02:55.3]} 12... bxa3 {[%clk 0:02:48.3]}
13. Bxa3 {[%clk 0:02:55.9]} 13... Bxa3 {[%clk 0:02:48.6]} 14. Rxa3 {[%clk
0:02:57.8]} 14... b5 {[%clk 0:02:49.2]} 15. O-O {[%clk 0:02:55.2]} 15... b4
{[%clk 0:02:48.2]} 16. Ra1 {[%clk 0:02:55.9]} 16... O-O {[%clk 0:02:48.5]} 17.
Nf3 {[%clk 0:02:54.4]} 17... g6 {[%clk 0:02:46.5]} 18. Qd2 {[%clk 0:02:53.9]}
18... Qe7 {[%clk 0:02:45.3]} 19. Nd4 {[%clk 0:02:44.5]} 19... Rfc8 {[%clk
0:02:45.7]} 20. Rfc1 {[%clk 0:02:40.2]} 20... Ne5 {[%clk 0:02:44.4]} 21. c3
{[%clk 0:02:36.4]} 21... bxc3 {[%clk 0:02:30.3]} 22. Rxc3 {[%clk 0:02:38]} 22...
Qb4 {[%clk 0:02:04.6]} 23. Rc2 {[%clk 0:02:38.2]} 23... Qxd2 {[%clk 0:02:01]}
24. Rxd2 {[%clk 0:02:40.1]} 24... Nc6 {[%clk 0:01:59.4]} 25. Nb5 {[%clk
0:02:32]} 25... Nb4 {[%clk 0:01:57.1]} 26. Bd1 {[%clk 0:02:25.6]} 26... Rc5
{[%clk 0:01:37.1]} 27. Nd4 {[%clk 0:02:22.7]} 27... Nd7 {[%clk 0:01:32.8]} 28.
Nb3 {[%clk 0:02:00]} 28... Rb5 {[%clk 0:01:29.9]} 29. Nd4 {[%clk 0:01:59.7]}
29... Rb6 {[%clk 0:01:29]} 30. Ne2 {[%clk 0:01:30.8]} 30... Nc5 {[%clk
0:01:28.4]} 31. Nc3 {[%clk 0:01:27]} 31... Rd6 {[%clk 0:01:11.7]} 32. d4 {[%clk
0:01:17]} 32... Ne4 {[%clk 0:01:11.9]} 33. Nxe4 {[%clk 0:01:03]} 33... fxe4
{[%clk 0:01:12.8]} 34. Rb2 {[%clk 0:00:55.2]} 34... Rb6 {[%clk 0:01:13.3]} 35.
Ba4 {[%clk 0:00:48.6]} 35... Rab8 {[%clk 0:00:53.2]} 36. Rab1 {[%clk 0:00:37.8]}
36... Kf8 {[%clk 0:00:50.1]} 37. g4 {[%clk 0:00:37.6]} 37... Ke7 {[%clk
0:00:50.2]} 38. Kg2 {[%clk 0:00:39.1]} 38... Kd6 {[%clk 0:00:50.8]} 39. f3
{[%clk 0:00:39.9]} 39... f5 {[%clk 0:00:47.4]} 40. fxe4 {[%clk 0:00:38.6]} 40...
fxe4 {[%clk 0:00:48.1]} 41. Rf2 {[%clk 0:00:37.9]} 41... Nd3 {[%clk 0:00:20.7]}
42. Rf7 {[%clk 0:00:38.4]} 42... Rxb1 {[%clk 0:00:20.7]} 43. Rf6+ {[%clk
0:00:38.2]} 43... Ke7 {[%clk 0:00:21.2]} 44. Rxg6 {[%clk 0:00:39.7]} 44... R8b2+
{[%clk 0:00:22.2]} 45. Kg3 {[%clk 0:00:40.7]} 45... Rg1+ {[%clk 0:00:22.3]} 46.
Kh4 {[%clk 0:00:42]} 46... Re2 {[%clk 0:00:22.9]} 47. Rxh6 {[%clk 0:00:39.2]}
47... Rxe3 {[%clk 0:00:24.2]} 48. Ra6 {[%clk 0:00:40.9]} 48... Rgg3 {[%clk
0:00:24]} 49. Rxa5 {[%clk 0:00:41.5]} 49... Rxh3+ {[%clk 0:00:25.3]} 50. Kg5
{[%clk 0:00:42.4]} 50... Reg3 {[%clk 0:00:24.9]} 51. Rxd5 {[%clk 0:00:40]} 51...
e3 {[%clk 0:00:26.1]} 52. Bd1 {[%clk 0:00:36]} 52... Rh1 {[%clk 0:00:25]} 53.
Be2 {[%clk 0:00:36.2]} 53... Nc1 {[%clk 0:00:25.8]} 54. Bb5 {[%clk 0:00:35.1]}
54... Rhg1 {[%clk 0:00:25.5]} 55. Re5+ {[%clk 0:00:30.7]} 55... Kd6 {[%clk
0:00:26.1]} 56. Kf4 {[%clk 0:00:31]} 56... Rxg4+ {[%clk 0:00:23]} 57. Kxe3
{[%clk 0:00:32.3]} 57... R1g3+ {[%clk 0:00:21.2]} 58. Kf2 {[%clk 0:00:33.3]}
58... Nb3 {[%clk 0:00:21.9]} 59. Be2 {[%clk 0:00:17.6]} 59... Rg2+ {[%clk
0:00:18.5]} 60. Kf1 {[%clk 0:00:18.8]} 60... R4g3 {[%clk 0:00:16.4]} 61. Bf3
{[%clk 0:00:09.7]} 61... Rg1+ {[%clk 0:00:16.1]} 62. Kf2 {[%clk 0:00:10.8]}
62... Nxd4 {[%clk 0:00:17.2]} 63. Rd5+ {[%clk 0:00:11.5]} 63... Ke6 {[%clk
0:00:16.4]} 64. Rxd4 {[%clk 0:00:13.4]} 64... Ke5 {[%clk 0:00:14.2]} 65. Re4+
{[%clk 0:00:14.5]} 65... Kf5 {[%clk 0:00:15]} 66. Ra4 {[%clk 0:00:15.7]} 66...
Rg8 {[%clk 0:00:14.2]} 67. Ra5+ {[%clk 0:00:16.5]} 67... Ke6 {[%clk 0:00:13.9]}
68. Ra6+ {[%clk 0:00:17.1]} 68... Kd7 {[%clk 0:00:14.3]} 69. Ra7+ {[%clk
0:00:17.9]} 69... Kd6 {[%clk 0:00:14.6]} 70. Ra6+ {[%clk 0:00:18.9]} 70... Kc5
{[%clk 0:00:15.6]} 71. Ra5+ {[%clk 0:00:19.9]} 71... Kb4 {[%clk 0:00:16.3]} 72.
Re5 {[%clk 0:00:20.8]} 72... Ra1 {[%clk 0:00:16]} 73. Re4+ {[%clk 0:00:21.3]}
73... Kc5 {[%clk 0:00:16.7]} 74. Re5+ {[%clk 0:00:21.7]} 74... Kd6 {[%clk
0:00:13.6]} 75. Rd5+ {[%clk 0:00:22.1]} 75... Ke6 {[%clk 0:00:14.3]} 76. Rd3
{[%clk 0:00:22.9]} 76... Rf8 {[%clk 0:00:15.3]} 77. Ke3 {[%clk 0:00:23.1]} 77...
Rf1 {[%clk 0:00:13.5]} 78. Be4 {[%clk 0:00:19.8]} 78... Rg1 {[%clk 0:00:13.1]}
79. Ke2 {[%clk 0:00:13.9]} 79... Rh8 {[%clk 0:00:12.2]} 80. Re3 {[%clk 0:00:11]}
80... Kd6 {[%clk 0:00:10.7]} 81. Rd3+ {[%clk 0:00:10.7]} 81... Kc5 {[%clk
0:00:11.6]} 82. Rd5+ {[%clk 0:00:08.5]} 82... Kc4 {[%clk 0:00:12.4]} 83. Rd7
{[%clk 0:00:08.4]} 83... Rh2+ {[%clk 0:00:11.7]} 84. Kf3 {[%clk 0:00:09.6]}
84... Re1 {[%clk 0:00:11.1]} 85. Bd5+ {[%clk 0:00:09.8]} 85... Kc5 {[%clk
0:00:11.3]} 86. Kg3 {[%clk 0:00:06.6]} 86... Rh6 {[%clk 0:00:12.1]} 87. Bf3
{[%clk 0:00:07.4]} 87... Rf1 {[%clk 0:00:12.5]} 88. Rg7 {[%clk 0:00:06.2]} 88...
Ra6 {[%clk 0:00:11.5]} 89. Rg5+ {[%clk 0:00:07]} 89... Kd4 {[%clk 0:00:12.3]}
90. Rg4+ {[%clk 0:00:08.4]} 90... Ke3 {[%clk 0:00:12]} 91. Re4+ {[%clk
0:00:09.5]} 91... Kd2 {[%clk 0:00:12.5]} 92. Re2+ {[%clk 0:00:10.5]} 92... Kd3
{[%clk 0:00:12]} 93. Rg2 {[%clk 0:00:07.4]} 93... Rf6 {[%clk 0:00:10.9]} 94. Bg4
{[%clk 0:00:07.5]} 94... Ke3 {[%clk 0:00:10.6]} 95. Re2+ {[%clk 0:00:08.3]}
95... Kd3 {[%clk 0:00:11.6]} 96. Rg2 {[%clk 0:00:09.9]} 96... Rg6 {[%clk
0:00:12.2]} 97. Kh4 {[%clk 0:00:09.8]} 97... Rh1+ {[%clk 0:00:09.1]} 98. Kg3
{[%clk 0:00:11]} 98... Rf1 {[%clk 0:00:06.1]} 99. Kh4 {[%clk 0:00:11.9]} 99...
Ke3 {[%clk 0:00:06.1]} 100. Kh5 {[%clk 0:00:08.3]} 100... Rg8 {[%clk 0:00:06]}
101. Kh4 {[%clk 0:00:08.1]} 101... Kf4 {[%clk 0:00:06.8]} 102. Rg3 {[%clk
0:00:04.1]} 102... Rh8+ {[%clk 0:00:07.3]} 103. Bh5 {[%clk 0:00:05]} 103... Rh1+
{[%clk 0:00:08.6]} 104. Rh3 {[%clk 0:00:04.9]} 104... Rxh3+ {[%clk 0:00:09.8]}
105. Kxh3 {[%clk 0:00:06.8]} 105... Rxh5+ {[%clk 0:00:11.1]} 0-1

[Event "***Titled Tuesday 3|2 Blitz"]
[Site "Chess.com"]
[Date "2017.02.07"]
[Round "4"]
[White "MagnusCarlsen"]
[Black "Keranke"]
[Result "1-0"]
[WhiteElo "2980"]
[BlackElo "2662"]
[TimeControl "180+2"]
[EndTime "13:53:53 PST"]
[Termination "MagnusCarlsen won by resignation"]

1. d4 {[%clk 0:03:02]} 1... g6 {[%clk 0:03:00.2]} 2. e4 {[%clk 0:03:00.7]} 2...
Bg7 {[%clk 0:03:01.4]} 3. Nf3 {[%clk 0:03:01.8]} 3... d6 {[%clk 0:03:02.6]} 4.
Bc4 {[%clk 0:03:03]} 4... e6 {[%clk 0:03:00.2]} 5. Bb3 {[%clk 0:03:03.7]} 5...
Ne7 {[%clk 0:03:00]} 6. O-O {[%clk 0:03:05]} 6... O-O {[%clk 0:03:00.1]} 7. Re1
{[%clk 0:03:05.3]} 7... Nd7 {[%clk 0:03:00.4]} 8. c3 {[%clk 0:03:06.4]} 8... b6
{[%clk 0:03:00.4]} 9. Nbd2 {[%clk 0:03:07.7]} 9... Bb7 {[%clk 0:03:01.3]} 10.
Nf1 {[%clk 0:03:09.6]} 10... e5 {[%clk 0:02:43.7]} 11. Ng3 {[%clk 0:03:09.4]}
11... h6 {[%clk 0:02:36.8]} 12. h4 {[%clk 0:03:03.1]} 12... Kh7 {[%clk
0:02:17.4]} 13. Bc2 {[%clk 0:02:59.6]} 13... Nc6 {[%clk 0:02:04.5]} 14. h5
{[%clk 0:02:59.5]} 14... Nf6 {[%clk 0:02:03.7]} 15. Be3 {[%clk 0:02:56.7]} 15...
Ng4 {[%clk 0:01:57.2]} 16. Ng5+ {[%clk 0:02:57]} 16... hxg5 {[%clk 0:01:55.4]}
17. Qxg4 {[%clk 0:02:55.2]} 17... exd4 {[%clk 0:01:48]} 18. hxg6+ {[%clk
0:02:55.6]} 18... fxg6 {[%clk 0:01:49]} 19. Bxg5 {[%clk 0:02:56.6]} 19... Bf6
{[%clk 0:01:48.5]} 20. Qh4+ {[%clk 0:02:57.4]} 20... Kg8 {[%clk 0:01:47.7]} 21.
Bb3+ {[%clk 0:02:57.3]} 1-0